fUSD/lending_fUSD_20240814
["ID","MTS","AMOUNT","RATE_DAILY","PERIOD"]
[334820869,1723603939078,-2403.52,0.00015342,2]
[334820870,1723603939088,-6526.45,0.00015342,2]
[334820871,1723603939097,-775.24,0.00015342,2]
[334820872,1723603939107,-547.37404807,0.00015342,2]
[334820873,1723603939117,-617.42,0.00015342,2]
[334820874,1723603939127,-500.0,0.00015342,2]
[334820875,1723603939136,-2020.58,0.00015342,2]
[334820876,1723603939146,-564.1,0.00015342,2]
[334820877,1723603939156,-500.0,0.00015342,2]
[334820878,1723603939166,-3030.89,0.00015342,2]
[334820879,1723603939175,-500.0,0.00015342,2]
[334820880,1723603939185,-970.69,0.00015342,2]
[334820881,1723603939195,-1492.57,0.00015342,2]
[334820882,1723603939204,-500.0,0.00015342,2]
[334820883,1723603939214,-503.32937172,0.00015342,2]
[334820884,1723603939224,-500.0,0.00015342,2]
[334820885,1723603939234,-8083.22,0.00015342,2]
[334820886,1723603939244,-2641.04,0.00015342,2]
[334820887,1723603939253,-748.52,0.00015342,2]
[334820888,1723603939263,-500.0,0.00015342,2]
[334820889,1723603939273,-500.0,0.00015342,2]
[334820890,1723603939283,-3609.21,0.00015342,2]
[334820891,1723603939292,-500.0,0.00015342,2]
[334820892,1723603939302,-776.31,0.00015342,2]
[334820893,1723603939312,-500.0,0.00015342,2]
[334820894,1723603939322,-500.0,0.00015342,2]
[334820895,1723603939332,-6500.63,0.00015342,2]
[334820896,1723603939342,-578.35138871,0.00015342,2]
[334820897,1723603939352,-500.0,0.00015342,2]
[334820898,1723603939361,-654.47,0.00015342,2]
[334820899,1723603939371,-12415.65,0.00015342,2]
[334820900,1723603939381,-500.0,0.00015342,2]
[334820901,1723603939390,-500.0,0.00015342,2]
[334820902,1723603939400,-851.45,0.00015342,2]
[334820903,1723603939410,-514.11,0.00015342,2]
[334820904,1723603939420,-1374.17,0.00015342,2]
[334820905,1723603939430,-500.0,0.00015342,2]
[334820906,1723603939440,-771.96,0.00015342,2]
[334820907,1723603939449,-500.0,0.00015342,2]
[334820908,1723603939459,-420.5000678,0.00015342,2]
[334820909,1723603939470,-500.0,0.00015342,2]
[334820910,1723603939480,-1584.87,0.00015342,2]
[334820911,1723603939489,-733.22,0.00015342,2]
[334820912,1723603939499,-500.0,0.00015342,2]
[334820913,1723603939509,-2100.84,0.00015342,2]
[334820914,1723603939519,-6987.78,0.00015342,2]
[334820915,1723603939528,-500.0,0.00015342,2]
[334820916,1723603939538,-500.0,0.00015342,2]
[334820917,1723603939549,-202.0171381,0.00015342,2]
[334820918,1723603939559,-500.0,0.00015342,2]
[334820919,1723603939569,-37359.85,0.00015342,2]
[334820920,1723603939579,-500.0,0.00015342,2]
[334820921,1723603939589,-502.22480521,0.00015342,2]
[334820922,1723603939599,-4485.26,0.00015342,2]
[334820923,1723603939608,-801.55,0.00015342,2]
[334820924,1723603939618,-3325.54,0.00015342,2]
[334820925,1723603939628,-3101.62,0.00015342,2]
[334820926,1723603939637,-1740.94,0.00015342,2]
[334820927,1723603939647,-500.0,0.00015342,2]
[334820928,1723603939657,-706.4,0.00015342,2]
[334820929,1723603939666,-500.0,0.00015342,2]
[334820930,1723603939676,-551.94,0.00015342,2]
[334820931,1723603939685,-6739.6,0.00015342,2]
[334820932,1723603939695,-500.0,0.00015342,2]
[334820933,1723603939705,-500.0,0.00015342,2]
[334820934,1723603939715,-1984.33,0.00015342,2]
[334820935,1723603939725,-515.72,0.00015342,2]
[334820936,1723603939735,-500.0,0.00015342,2]
[334820937,1723603939744,-885.1,0.00015342,2]
[334820938,1723603939753,-862.92,0.00015342,2]
[334820939,1723603939765,-1280.3,0.00015342,2]
[334820940,1723603939775,-1985.9,0.00015342,2]
[334820941,1723603939784,-500.0,0.00015342,2]
[334820942,1723603939795,-4340.54,0.00015342,2]
[334820943,1723603939804,-954.48,0.00015342,2]
[334820944,1723603939814,-7538.05,0.00015342,2]
[334820945,1723603939823,-500.0,0.00015342,2]
[334820946,1723603939833,-2350.15,0.00015342,2]
[334820947,1723603939843,-500.0,0.00015342,2]
[334820948,1723603939852,-1823.31,0.00015342,2]
[334820949,1723603939862,-400.0,0.00015342,2]
[334820950,1723603939872,-624.46552432,0.00015369,2]
[334820951,1723603939881,-152.47241704,0.00015441,2]
[334820952,1723603939891,-152.47241704,0.0001555,2]
[334820953,1723603939900,-150.0,0.00015557,2]
[334820954,1723603939909,-222.4512183,0.00015605,2]
[334820955,1723603939919,-500.0,0.00015616,2]
[334820956,1723603939929,-1500.86,0.00015616,2]
[334820957,1723603939939,-500.0,0.00015616,2]
[334820958,1723603939949,-500.0,0.00015616,2]
[334820959,1723603939958,-500.0,0.00015616,2]
[334820960,1723603939970,-500.0,0.00015616,2]
[334820961,1723603939980,-500.0,0.00015616,2]
[334820962,1723603939989,-266.13558644,0.00015616,2]
[334820963,1723603939998,-500.0,0.00015616,2]
[334820964,1723603940009,-500.0,0.00015616,2]
[334820965,1723603940018,-500.0,0.00015616,2]
[334820966,1723603940028,-504.49683868,0.00015616,2]
[334820967,1723603940037,-1717.68,0.00015616,2]
[334820968,1723603940048,-500.26790518,0.00015616,2]
[334820969,1723603940057,-500.0,0.00015616,2]
[334820970,1723603940066,-1135.6,0.00015616,2]
[334820971,1723603940076,-500.0,0.00015616,2]
[334820972,1723603940085,-500.0,0.00015616,2]
[334820973,1723603940095,-500.0,0.00015616,2]
[334820974,1723603940104,-500.0,0.00015616,2]
[334820975,1723603940114,-500.0,0.00015616,2]
[334820976,1723603940124,-500.0,0.00015616,2]
[334820977,1723603940134,-505.87,0.00015616,2]
[334820978,1723603940144,-668.17,0.00015616,2]
[334820979,1723603940153,-2087.27,0.00015616,2]
[334820980,1723603940164,-1187.42,0.00015616,2]
[334820981,1723603940173,-504.46,0.00015616,2]
[334820982,1723603940183,-500.0,0.00015616,2]
[334820983,1723603940192,-500.0,0.00015616,2]
[334820984,1723603940203,-500.0,0.00015616,2]
[334820985,1723603940213,-639.38,0.00015616,2]
[334820986,1723603940223,-500.0,0.00015616,2]
[334820987,1723603940232,-500.0,0.00015616,2]
[334820988,1723603940241,-500.0,0.00015616,2]
[334820989,1723603940251,-500.0,0.00015616,2]
[334820990,1723603940261,-500.0,0.00015616,2]
[334820991,1723603940271,-500.0,0.00015616,2]
[334820992,1723603940282,-500.0,0.00015616,2]
[334820993,1723603940291,-1269.99,0.00015616,2]
[334820994,1723603940301,-500.0,0.00015616,2]
[334820995,1723603940310,-500.0,0.00015616,2]
[334820996,1723603940319,-500.0,0.00015616,2]
[334820997,1723603940328,-251.01049666,0.00015616,2]
[334820998,1723603940337,-500.0,0.00015616,2]
[334820999,1723603940346,-500.0,0.00015616,2]
[334821000,1723603940356,-711.22,0.00015616,2]
[334821001,1723603940365,-942.4,0.00015616,2]
[334821002,1723603940374,-203.20341545,0.00015616,2]
[334821003,1723603940383,-1243.83,0.00015616,2]
[334821004,1723603940392,-1433.34,0.00015616,2]
[334821005,1723603940401,-500.0,0.00015616,2]
[334821006,1723603940412,-641.88,0.00015616,2]
[334821007,1723603940421,-500.0,0.00015616,2]
[334821008,1723603940431,-681.49,0.00015616,2]
[334821009,1723603940440,-596.25,0.00015616,2]
[334821010,1723603940449,-514.21,0.00015616,2]
[334821011,1723603940459,-504.38445849,0.00015616,2]
[334821012,1723603940468,-500.0,0.00015616,2]
[334821013,1723603940477,-500.0,0.00015616,2]
[334821014,1723603940487,-840.72,0.00015616,2]
[334821015,1723603940599,-500.0,0.00015616,2]
[334821016,1723603940609,-519.79,0.00015616,2]
[334821017,1723603940618,-500.0,0.00015616,2]
[334821018,1723603940627,-500.0,0.00015616,2]
[334821019,1723603940636,-261.440025,0.00015616,2]
[334821020,1723603940645,-1752.99,0.00015616,2]
[334821021,1723603940654,-500.0,0.00015616,2]
[334821022,1723603940664,-500.0,0.00015616,2]
[334821023,1723603940674,-681.04,0.00015616,2]
[334821024,1723603940683,-500.0,0.00015616,2]
[334821025,1723603940692,-500.0,0.00015616,2]
[334821026,1723603940701,-500.0,0.00015616,2]
[334821027,1723603940710,-500.0,0.00015616,2]
[334821028,1723603940719,-500.0,0.00015616,2]
[334821029,1723603940729,-500.0,0.00015616,2]
[334821030,1723603940738,-500.0,0.00015616,2]
[334821031,1723603940747,-500.0,0.00015616,2]
[334821032,1723603940756,-500.0,0.00015616,2]
[334821033,1723603940766,-500.0,0.00015616,2]
[334821034,1723603940775,-515.84,0.00015616,2]
[334821035,1723603940785,-500.0,0.00015616,2]
[334821036,1723603940794,-500.0,0.00015616,2]
[334821037,1723603940803,-500.0,0.00015616,2]
[334821038,1723603940812,-788.88,0.00015616,2]
[334821039,1723603940821,-500.0,0.00015616,2]
[334821040,1723603940830,-500.0,0.00015616,2]
[334821041,1723603940839,-500.0,0.00015616,2]
[334821042,1723603940848,-500.0,0.00015616,2]
[334821043,1723603940858,-500.0,0.00015616,2]
[334821044,1723603940867,-540.27,0.00015616,2]
[334821045,1723603940877,-500.0,0.00015616,2]
[334821046,1723603940886,-500.0,0.00015616,2]
[334821047,1723603940895,-500.0,0.00015616,2]
[334821048,1723603940904,-588.06959223,0.00015616,2]
[334821049,1723603940915,-500.0,0.00015616,2]
[334821050,1723603940924,-539.27,0.00015616,2]
[334821051,1723603940935,-500.0,0.00015616,2]
[334821052,1723603940945,-556.85,0.00015616,2]
[334821053,1723603940955,-501.04569566,0.00015616,2]
[334821054,1723603940965,-510.55,0.00015616,2]
[334821055,1723603940977,-1828.99,0.00015616,2]
[334821056,1723603940986,-500.0,0.00015616,2]
[334821057,1723603940995,-500.0,0.00015616,2]
[334821058,1723603941007,-521.14,0.00015616,2]
[334821059,1723603941017,-500.0,0.00015616,2]
[334821060,1723603941028,-500.0,0.00015616,2]
[334821061,1723603941039,-500.0,0.00015616,2]
[334821062,1723603941051,-500.0,0.00015616,2]
[334821063,1723603941060,-500.0,0.00015616,2]
[334821064,1723603941069,-500.0,0.00015616,2]
[334821065,1723603941079,-500.0,0.00015616,2]
[334821066,1723603941089,-606.86395745,0.00015616,2]
[334821067,1723603941098,-788.86,0.00015616,2]
[334821068,1723603941108,-500.0,0.00015616,2]
[334821069,1723603941117,-500.0,0.00015616,2]
[334821070,1723603941126,-500.0,0.00015616,2]
[334821071,1723603941135,-570.12,0.00015616,2]
[334821072,1723603941148,-710.6,0.00015616,2]
[334821073,1723603941159,-500.0,0.00015616,2]
[334821074,1723603941168,-500.0,0.00015616,2]
[334821075,1723603941178,-500.0,0.00015616,2]
[334821076,1723603941187,-767.65,0.00015616,2]
[334821077,1723603941197,-550.4,0.00015616,2]
[334821078,1723603941206,-500.0,0.00015616,2]
[334821079,1723603941215,-500.0,0.00015616,2]
[334821080,1723603941225,-505.84400916,0.00015616,2]
[334821081,1723603941234,-373.77555772,0.00015616,2]
[334821082,1723603941244,-159.48369259,0.00015616,2]
[334821083,1723603941255,-500.0,0.00015616,2]
[334821084,1723603941264,-500.0,0.00015616,2]
[334821085,1723603941274,-500.0,0.00015616,2]
[334821086,1723603941283,-1176.84,0.00015616,2]
[334821087,1723603941293,-593.23,0.00015616,2]
[334821088,1723603941302,-354.37426984,0.00015616,2]
[334821089,1723603941311,-500.0,0.00015616,2]
[334821090,1723603941320,-500.0,0.00015616,2]
[334821091,1723603941330,-500.0,0.00015616,2]
[334821092,1723603941339,-437.76947728,0.00015616,2]
[334821093,1723603941348,-500.0,0.00015616,2]
[334821094,1723603941357,-500.0,0.00015616,2]
[334821095,1723603941366,-500.0,0.00015616,2]
[334821096,1723603941375,-500.0,0.00015616,2]
[334821097,1723603941384,-1645.84,0.00015616,2]
[334821098,1723603941394,-500.0,0.00015616,2]
[334821099,1723603941403,-500.0,0.00015616,2]
[334821100,1723603941414,-500.0,0.00015616,2]
[334821101,1723603941424,-500.0,0.00015616,2]
[334821102,1723603941434,-159.11394938,0.00015616,2]
[334821103,1723603941443,-527.39,0.00015616,2]
[334821104,1723603941453,-500.0,0.00015616,2]
[334821105,1723603941463,-500.0,0.00015616,2]
[334821106,1723603941472,-500.0,0.00015616,2]
[334821107,1723603941481,-150.66959068,0.00015616,2]
[334821108,1723603941491,-679.23,0.00015616,2]
[334821109,1723603941500,-500.0,0.00015616,2]
[334821110,1723603941510,-223.01875906,0.00015616,2]
[334821111,1723603941519,-500.0,0.00015616,2]
[334821112,1723603941529,-1488.54,0.00015616,2]
[334821113,1723603941538,-500.0,0.00015616,2]
[334821114,1723603941548,-500.0,0.00015616,2]
[334821115,1723603941557,-500.0,0.00015616,2]
[334821116,1723603941567,-504.29469484,0.00015616,2]
[334821117,1723603941576,-500.0,0.00015616,2]
[334821118,1723603941586,-500.0,0.00015616,2]
[334821119,1723603941596,-625.85,0.00015616,2]
[334821120,1723603941607,-500.0,0.00015616,2]
[334821121,1723603941618,-500.0,0.00015616,2]
[334821122,1723603941628,-500.0,0.00015616,2]
[334821123,1723603941638,-3037.22,0.00015616,2]
[334821124,1723603941647,-500.0,0.00015616,2]
[334821125,1723603941657,-302.11749226,0.00015616,2]
[334821126,1723603941668,-500.0,0.00015616,2]
[334821127,1723603941677,-500.0,0.00015616,2]
[334821128,1723603941687,-500.0,0.00015616,2]
[334821129,1723603941696,-1050.9,0.00015616,2]
[334821130,1723603941706,-500.0,0.00015616,2]
[334821131,1723603941715,-500.0,0.00015616,2]
[334821132,1723603941725,-500.0,0.00015616,2]
[334821133,1723603941736,-500.0,0.00015616,2]
[334821134,1723603941746,-500.0,0.00015616,2]
[334821135,1723603941757,-500.0,0.00015616,2]
[334821136,1723603941766,-500.0,0.00015616,2]
[334821137,1723603941775,-500.0,0.00015616,2]
[334821138,1723603941784,-500.0,0.00015616,2]
[334821139,1723603941794,-277.98343827,0.00015616,2]
[334821140,1723603941803,-500.0,0.00015616,2]
[334821141,1723603941814,-500.0,0.00015616,2]
[334821142,1723603941824,-898.04,0.00015616,2]
[334821143,1723603941837,-500.0,0.00015616,2]
[334821144,1723603941847,-1015.12,0.00015616,2]
[334821145,1723603941856,-500.0,0.00015616,2]
[334821146,1723603941865,-677.19,0.00015616,2]
[334821147,1723603941876,-500.0,0.00015616,2]
[334821148,1723603941886,-3125.45,0.00015616,2]
[334821149,1723603941896,-2121.22,0.00015616,2]
[334821150,1723603941907,-510.22242021,0.00015616,2]
[334821151,1723603941916,-935.8,0.00015616,2]
[334821152,1723603941926,-500.0,0.00015616,2]
[334821153,1723603941937,-2706.39,0.00015616,2]
[334821154,1723603941947,-500.0,0.00015616,2]
[334821155,1723603941956,-500.0,0.00015616,2]
[334821156,1723603941966,-500.0,0.00015616,2]
[334821157,1723603941979,-500.0,0.00015616,2]
[334821158,1723603941991,-4210.94,0.00015616,2]
[334821159,1723603942000,-4601.07,0.00015616,2]
[334821160,1723603942010,-500.0,0.00015616,2]
[334821161,1723603942020,-1228.41,0.00015616,2]
[334821162,1723603942030,-500.0,0.00015616,2]
[334821163,1723603942039,-500.0,0.00015616,2]
[334821164,1723603942051,-951.16,0.00015616,2]
[334821165,1723603942061,-919.64,0.00015616,2]
[334821166,1723603942071,-584.56,0.00015616,2]
[334821167,1723603942080,-1794.95,0.00015616,2]
[334821168,1723603942091,-500.0,0.00015616,2]
[334821169,1723603942101,-3321.93,0.00015616,2]
[334821170,1723603942112,-1422.69,0.00015616,2]
[334821171,1723603942122,-500.0,0.00015616,2]
[334821172,1723603942132,-2496.28,0.00015616,2]
[334821173,1723603942142,-500.0,0.00015616,2]
[334821174,1723603942151,-1937.4,0.00015616,2]
[334821175,1723603942160,-702.18,0.00015616,2]
[334821176,1723603942169,-500.0,0.00015616,2]
[334821177,1723603942178,-500.0,0.00015616,2]
[334821178,1723603942188,-525.91,0.00015616,2]
[334821179,1723603942198,-720.77,0.00015616,2]
[334821180,1723603942208,-2973.74,0.00015616,2]
[334821181,1723603942218,-500.0,0.00015616,2]
[334821182,1723603942227,-657.62,0.00015616,2]
[334821183,1723603942237,-2208.41,0.00015616,2]
[334821184,1723603942246,-2020.58,0.00015616,2]
[334821185,1723603942257,-500.0,0.00015616,2]
[334821186,1723603942267,-956.36,0.00015616,2]
[334821187,1723603942278,-500.0,0.00015616,2]
[334821188,1723603942287,-500.0,0.00015616,2]
[334821189,1723603942296,-830.48,0.00015616,2]
[334821190,1723603942305,-908.14,0.00015616,2]
[334821191,1723603942315,-500.0,0.00015616,2]
[334821192,1723603942324,-1531.76,0.00015616,2]
[334821193,1723603942333,-806.72,0.00015616,2]
[334821194,1723603942342,-1233.68,0.00015616,2]
[334821195,1723603942352,-3549.23,0.00015616,2]
[334821196,1723603942362,-506.83,0.00015616,2]
[334821197,1723603942372,-881.49,0.00015616,2]
[334821198,1723603942381,-1686.3,0.00015616,2]
[334821199,1723603942391,-500.0,0.00015616,2]
[334821200,1723603942400,-1104.64,0.00015616,2]
[334821201,1723603942409,-500.0,0.00015616,2]
[334821202,1723603942419,-959.01,0.00015616,2]
[334821203,1723603942428,-500.0,0.00015616,2]
[334821204,1723603942438,-3432.32,0.00015616,2]
[334821205,1723603942447,-3444.79,0.00015616,2]
[334821206,1723603942457,-500.0,0.00015616,2]
[334821207,1723603942466,-500.0,0.00015616,2]
[334821208,1723603942475,-500.0,0.00015616,2]
[334821209,1723603942485,-1279.57,0.00015616,2]
[334821210,1723603942495,-500.0,0.00015616,2]
[334821211,1723603942504,-644.3,0.00015616,2]
[334821212,1723603942514,-500.0,0.00015616,2]
[334821213,1723603942524,-526.04,0.00015616,2]
[334821214,1723603942534,-500.0,0.00015616,2]
[334821215,1723603942543,-604.27,0.00015616,2]
[334821216,1723603942553,-1106.38,0.00015616,2]
[334821217,1723603942562,-1190.65,0.00015616,2]
[334821218,1723603942572,-385.97301986,0.00015616,2]
[334821219,1723603942582,-1152.6,0.00015616,2]
[334821220,1723603942591,-517.67426259,0.00015616,2]
[334821221,1723603942600,-500.0,0.00015616,2]
[334821222,1723603942610,-500.0,0.00015616,2]
[334821223,1723603942620,-621.41,0.00015616,2]
[334821224,1723603942630,-500.0,0.00015616,2]
[334821225,1723603942640,-500.0,0.00015616,2]
[334821226,1723603942649,-3396.28,0.00015616,2]
[334821227,1723603942658,-500.0,0.00015616,2]
[334821228,1723603942667,-891.26,0.00015616,2]
[334821229,1723603942677,-904.92,0.00015616,2]
[334821230,1723603942686,-500.0,0.00015616,2]
[334821231,1723603942695,-500.0,0.00015616,2]
[334821232,1723603942704,-500.0,0.00015616,2]
[334821233,1723603942714,-2942.78,0.00015616,2]
[334821234,1723603942723,-500.0,0.00015616,2]
[334821235,1723603942733,-692.81,0.00015616,2]
[334821236,1723603942743,-671.73,0.00015616,2]
[334821237,1723603942752,-500.0,0.00015616,2]
[334821238,1723603942761,-1883.45,0.00015616,2]
[334821239,1723603942771,-500.0,0.00015616,2]
[334821240,1723603942780,-4358.76,0.00015616,2]
[334821241,1723603942790,-531.95,0.00015616,2]
[334821242,1723603942799,-500.0,0.00015616,2]
[334821243,1723603942809,-500.0,0.00015616,2]
[334821244,1723603942818,-852.51,0.00015616,2]
[334821245,1723603942828,-601.64,0.00015616,2]
[334821246,1723603942837,-500.0,0.00015616,2]
[334821247,1723603942847,-1102.89,0.00015616,2]
[334821248,1723603942856,-500.0,0.00015616,2]
[334821249,1723603942865,-500.0,0.00015616,2]
[334821250,1723603942875,-3773.36,0.00015616,2]
[334821251,1723603942884,-1274.4,0.00015616,2]
[334821252,1723603942893,-1238.0,0.00015616,2]
[334821253,1723603942903,-500.0,0.00015616,2]
[334821254,1723603942913,-500.0,0.00015616,2]
[334821255,1723603942922,-500.0,0.00015616,2]
[334821256,1723603942931,-3131.44,0.00015616,2]
[334821257,1723603942941,-500.0,0.00015616,2]
[334821258,1723603942950,-2308.42,0.00015616,2]
[334821259,1723603942959,-500.0,0.00015616,2]
[334821260,1723603942970,-3908.47,0.00015616,2]
[334821261,1723603942983,-2319.06,0.00015616,2]
[334821262,1723603942992,-1013.41,0.00015616,2]
[334821263,1723603943002,-500.0,0.00015616,2]
[334821264,1723603943012,-543.97,0.00015616,2]
[334821265,1723603943023,-500.0,0.00015616,2]
[334821266,1723603943032,-611.41,0.00015616,2]
[334821267,1723603943041,-4269.05,0.00015616,2]
[334821268,1723603943051,-4275.05,0.00015616,2]
[334821269,1723603943060,-1143.12,0.00015616,2]
[334821270,1723603943069,-4663.28,0.00015616,2]
[334821271,1723603943078,-1116.18,0.00015616,2]
[334821272,1723603943087,-1963.14,0.00015616,2]
[334821273,1723603943096,-500.0,0.00015616,2]
[334821274,1723603943105,-500.0,0.00015616,2]
[334821275,1723603943114,-513.84,0.00015616,2]
[334821276,1723603943123,-500.0,0.00015616,2]
[334821277,1723603943133,-563.85,0.00015616,2]
[334821278,1723603943144,-1042.63,0.00015616,2]
[334821279,1723603943153,-500.0,0.00015616,2]
[334821280,1723603943163,-5039.17,0.00015616,2]
[334821281,1723603943172,-500.0,0.00015616,2]
[334821282,1723603943181,-500.0,0.00015616,2]
[334821283,1723603943190,-2211.11,0.00015616,2]
[334821284,1723603943199,-886.37,0.00015616,2]
[334821285,1723603943209,-871.5,0.00015616,2]
[334821286,1723603943219,-500.0,0.00015616,2]
[334821287,1723603943228,-500.0,0.00015616,2]
[334821288,1723603943238,-1663.19,0.00015616,2]
[334821289,1723603943247,-500.0,0.00015616,2]
[334821290,1723603943257,-5519.37,0.00015616,2]
[334821291,1723603943266,-151.0,0.00015616,2]
[334821292,1723603943276,-548.95,0.00015616,2]
[334821293,1723603943285,-1172.03,0.00015616,2]
[334821294,1723603943294,-500.0,0.00015616,2]
[334821295,1723603943304,-500.0,0.00015616,2]
[334821296,1723603943313,-500.0,0.00015616,2]
[334821297,1723603943322,-500.0,0.00015616,2]
[334821298,1723603943332,-1026.14,0.00015616,2]
[334821299,1723603943341,-2558.78,0.00015616,2]
[334821300,1723603943350,-6089.56,0.00015616,2]
[334821301,1723603943360,-500.0,0.00015616,2]
[334821302,1723603943370,-721.59,0.00015616,2]
[334821303,1723603943379,-652.17,0.00015616,2]
[334821304,1723603943388,-1052.72,0.00015616,2]
[334821305,1723603943397,-500.0,0.00015616,2]
[334821306,1723603943406,-500.0,0.00015616,2]
[334821307,1723603943416,-1637.63,0.00015616,2]
[334821308,1723603943425,-541.96,0.00015616,2]
[334821309,1723603943434,-3044.5,0.00015616,2]
[334821310,1723603943443,-2262.05,0.00015616,2]
[334821311,1723603943453,-500.0,0.00015616,2]
[334821312,1723603943462,-4734.54,0.00015616,2]
[334821313,1723603943471,-500.0,0.00015616,2]
[334821314,1723603943480,-6651.45,0.00015616,2]
[334821315,1723603943489,-1697.19,0.00015616,2]
[334821316,1723603943498,-500.0,0.00015616,2]
[334821317,1723603943507,-500.0,0.00015616,2]
[334821318,1723603943516,-505.96142044,0.00015616,2]
[334821319,1723603943526,-2800.16,0.00015616,2]
[334821320,1723603943535,-500.0,0.00015616,2]
[334821321,1723603943545,-1932.52,0.00015616,2]
[334821322,1723603943554,-500.0,0.00015616,2]
[334821323,1723603943563,-3412.59,0.00015616,2]
[334821324,1723603943572,-382.03807205,0.00015616,2]
[334821325,1723603943581,-1562.52,0.00015616,2]
[334821326,1723603943590,-500.0,0.00015616,2]
[334821327,1723603943599,-1904.81,0.00015616,2]
[334821328,1723603943608,-3403.14,0.00015616,2]
[334821329,1723603943618,-6160.63,0.00015616,2]
[334821330,1723603943627,-992.23,0.00015616,2]
[334821331,1723603943636,-557.37,0.00015616,2]
[334821332,1723603943645,-387.21135381,0.00015616,2]
[334821333,1723603943654,-500.0,0.00015616,2]
[334821334,1723603943664,-1080.99,0.00015616,2]
[334821335,1723603943672,-500.0,0.00015616,2]
[334821336,1723603943681,-500.0,0.00015616,2]
[334821337,1723603943690,-500.0,0.00015616,2]
[334821338,1723603943699,-3809.18,0.00015616,2]
[334821339,1723603943709,-507.24205696,0.00015616,2]
[334821340,1723603943720,-519.68,0.00015616,2]
[334821341,1723603943730,-500.0,0.00015616,2]
[334821342,1723603943741,-500.0,0.00015616,2]
[334821343,1723603943752,-3420.81,0.00015616,2]
[334821344,1723603943761,-2546.25,0.00015616,2]
[334821345,1723603943771,-500.0,0.00015616,2]
[334821346,1723603943780,-3109.12,0.00015616,2]
[334821347,1723603943790,-500.0,0.00015616,2]
[334821348,1723603943800,-610.77,0.00015616,2]
[334821349,1723603943809,-2747.79,0.00015616,2]
[334821350,1723603943819,-1627.16,0.00015616,2]
[334821351,1723603943828,-500.0,0.00015616,2]
[334821352,1723603943837,-500.0,0.00015616,2]
[334821353,1723603943846,-500.0,0.00015616,2]
[334821354,1723603943855,-925.42,0.00015616,2]
[334821355,1723603943864,-500.0,0.00015616,2]
[334821356,1723603943874,-1362.27,0.00015616,2]
[334821357,1723603943883,-737.98,0.00015616,2]
[334821358,1723603943892,-500.0,0.00015616,2]
[334821359,1723603943901,-1014.28,0.00015616,2]
[334821360,1723603943911,-1635.4,0.00015616,2]
[334821361,1723603943921,-500.0,0.00015616,2]
[334821362,1723603943930,-160.46508296,0.00015616,2]
[334821363,1723603943939,-1754.72,0.00015616,2]
[334821364,1723603943948,-500.0,0.00015616,2]
[334821365,1723603943959,-500.0,0.00015616,2]
[334821366,1723603943968,-500.0,0.00015616,2]
[334821367,1723603943982,-500.0,0.00015616,2]
[334821368,1723603943992,-684.39,0.00015616,2]